[Event "Titled Tuesday Blitz November 01 Early 2022"]
[White "Levine, David"]
[Black "Manukian, Artak"]
[WhiteFideId "2011611"]
[BlackFideId "13301373"]
[WhiteElo "2222"]
[BlackElo "2458"]
[Result "0-1"]
[Round "04"]
[TimeControl "180+1"]
[Date "2022.11.02"]
[WhiteClock "0:00:03"]
[BlackClock "0:00:27"]

1. d4 {[%clk 0:02:56]}  Nf6 {[%clk 0:02:49]} 2. c4 {[%clk 0:02:55]}  e6 {[%clk 0:02:49]} 3. g3 {[%clk 0:02:55]}  d5 {[%clk 0:02:45]} 4. Bg2 {[%clk 0:02:55]}  c5 {[%clk 0:02:41]} 5. cxd5 {[%clk 0:02:54]}  exd5 {[%clk 0:02:41]} 6. Nf3 {[%clk 0:02:53]}  Nc6 {[%clk 0:02:41]} 7. O-O {[%clk 0:02:53]}  h6 {[%clk 0:02:36]} 8. Nc3 {[%clk 0:02:51]}  c4 {[%clk 0:02:36]} 9. Ne5 {[%clk 0:02:45]}  Be6 {[%clk 0:02:34]} 10. e4 {[%clk 0:02:29]}  dxe4 {[%clk 0:02:29]} 11. Nxc6 {[%clk 0:02:27]}  bxc6 {[%clk 0:02:30]} 12. Nxe4 {[%clk 0:02:26]}  Nxe4 {[%clk 0:02:21]} 13. Bxe4 {[%clk 0:02:24]}  Bd5 {[%clk 0:02:22]} 14. Re1 {[%clk 0:02:18]}  Be7 {[%clk 0:02:22]} 15. Qe2 {[%clk 0:01:54]}  a5 {[%clk 0:02:06]} 16. Bf4 {[%clk 0:01:46]}  Ra7 {[%clk 0:02:03]} 17. b3 {[%clk 0:01:30]}  cxb3 {[%clk 0:01:58]} 18. axb3 {[%clk 0:01:29]}  O-O {[%clk 0:01:57]} 19. Bxd5 {[%clk 0:01:04]}  cxd5 {[%clk 0:01:57]} 20. Qb5 {[%clk 0:00:58]}  Bf6 {[%clk 0:01:53]} 21. Be5 {[%clk 0:00:58]}  Bxe5 {[%clk 0:01:22]} 22. Rxe5 {[%clk 0:00:56]}  Qb8 {[%clk 0:01:19]} 23. Rxd5 {[%clk 0:00:53]}  Rb7 {[%clk 0:01:11]} 24. Qxa5 {[%clk 0:00:50]}  Rxb3 {[%clk 0:01:12]} 25. Re5 {[%clk 0:00:28]}  Rb1+ {[%clk 0:01:11]} 26. Re1 {[%clk 0:00:28]}  Rxa1 {[%clk 0:01:09]} 27. Rxa1 {[%clk 0:00:27]}  Qd8 {[%clk 0:01:01]} 28. d5 {[%clk 0:00:26]}  Qxa5 {[%clk 0:01:00]} 29. Rxa5 {[%clk 0:00:26]}  Rd8 {[%clk 0:01:01]} 30. f4 {[%clk 0:00:25]}  g5 {[%clk 0:00:57]} 31. fxg5 {[%clk 0:00:21]}  hxg5 {[%clk 0:00:58]} 32. Kf2 {[%clk 0:00:21]}  Kg7 {[%clk 0:00:57]} 33. Ke3 {[%clk 0:00:21]}  Kf6 {[%clk 0:00:52]} 34. Kd4 {[%clk 0:00:21]}  Rh8 {[%clk 0:00:52]} 35. Ra2 {[%clk 0:00:16]}  g4 {[%clk 0:00:44]} 36. Rf2+ {[%clk 0:00:15]}  Ke7 {[%clk 0:00:42]} 37. Ke5 {[%clk 0:00:15]}  Rh5+ {[%clk 0:00:41]} 38. Kf4 {[%clk 0:00:13]}  Rxd5 {[%clk 0:00:39]} 39. Kxg4 {[%clk 0:00:13]}  f6 {[%clk 0:00:39]} 40. h4 {[%clk 0:00:12]}  Kf7 {[%clk 0:00:39]} 41. h5 {[%clk 0:00:11]}  Kg7 {[%clk 0:00:39]} 42. Rf4 {[%clk 0:00:10]}  Rd1 {[%clk 0:00:36]} 43. Ra4 {[%clk 0:00:04]}  Kh6 {[%clk 0:00:31]} 44. Ra6 {[%clk 0:00:03]}  Rd4+ {[%clk 0:00:27]} 0-1


[Site "https://www.chess.com"]

[Event "Titled Tuesday Blitz November 01 Early 2022"]
[White "Ljukin, Sergei"]
[Black "Kis, Lorand Bela"]
[WhiteFideId "14102200"]
[BlackFideId "2024098"]
[WhiteElo "2312"]
[BlackElo "2085"]
[Result "1-0"]
[Round "04"]
[TimeControl "180+1"]
[Date "2022.11.02"]
[WhiteClock "0:00:03"]
[BlackClock "0:00:01"]

1. e4 {[%clk 0:02:57]}  g6 {[%clk 0:02:59]} 2. d4 {[%clk 0:02:57]}  Bg7 {[%clk 0:03:00]} 3. Nc3 {[%clk 0:02:57]}  c5 {[%clk 0:03:00]} 4. dxc5 {[%clk 0:02:57]}  Nc6 {[%clk 0:02:59]} 5. Be3 {[%clk 0:02:53]}  Nf6 {[%clk 0:03:00]} 6. f3 {[%clk 0:02:51]}  O-O {[%clk 0:03:00]} 7. Bc4 {[%clk 0:02:50]}  b6 {[%clk 0:02:50]} 8. cxb6 {[%clk 0:02:50]}  axb6 {[%clk 0:02:49]} 9. Nge2 {[%clk 0:02:50]}  d6 {[%clk 0:02:49]} 10. O-O {[%clk 0:02:50]}  Ne5 {[%clk 0:02:48]} 11. Bb3 {[%clk 0:02:49]}  Ba6 {[%clk 0:02:48]} 12. Re1 {[%clk 0:02:47]}  b5 {[%clk 0:02:48]} 13. a3 {[%clk 0:02:45]}  Nc4 {[%clk 0:02:35]} 14. Bxc4 {[%clk 0:02:43]}  bxc4 {[%clk 0:02:35]} 15. Nd4 {[%clk 0:02:40]}  Qc7 {[%clk 0:02:31]} 16. Qd2 {[%clk 0:02:36]}  Rfb8 {[%clk 0:02:31]} 17. Reb1 {[%clk 0:02:29]}  Rb7 {[%clk 0:02:04]} 18. a4 {[%clk 0:02:27]}  Rd8 {[%clk 0:01:39]} 19. Ndb5 {[%clk 0:02:12]}  Qb8 {[%clk 0:01:35]} 20. Bd4 {[%clk 0:01:48]}  e6 {[%clk 0:01:08]} 21. Kh1 {[%clk 0:01:34]}  Rbd7 {[%clk 0:00:59]} 22. Rd1 {[%clk 0:01:21]}  h6 {[%clk 0:00:50]} 23. Qf2 {[%clk 0:01:19]}  d5 {[%clk 0:00:38]} 24. e5 {[%clk 0:01:16]}  Ne8 {[%clk 0:00:35]} 25. f4 {[%clk 0:01:15]}  Nc7 {[%clk 0:00:34]} 26. Nd6 {[%clk 0:01:04]}  Ne8 {[%clk 0:00:18]} 27. Nxe8 {[%clk 0:00:56]}  Rxe8 {[%clk 0:00:18]} 28. Rdb1 {[%clk 0:00:56]}  Rc8 {[%clk 0:00:16]} 29. b4 {[%clk 0:00:51]}  cxb3 {[%clk 0:00:16]} 30. cxb3 {[%clk 0:00:51]}  Rb7 {[%clk 0:00:16]} 31. Qa2 {[%clk 0:00:27]}  Bf8 {[%clk 0:00:16]} 32. Rb2 {[%clk 0:00:20]}  h5 {[%clk 0:00:15]} 33. Rab1 {[%clk 0:00:20]}  Bb4 {[%clk 0:00:15]} 34. Ne2 {[%clk 0:00:19]}  Bd3 {[%clk 0:00:15]} 35. Rd1 {[%clk 0:00:17]}  Ba6 {[%clk 0:00:13]} 36. h3 {[%clk 0:00:17]}  h4 {[%clk 0:00:13]} 37. Ng1 {[%clk 0:00:16]}  Rc6 {[%clk 0:00:11]} 38. Nf3 {[%clk 0:00:16]}  Be7 {[%clk 0:00:12]} 39. Rdb1 {[%clk 0:00:14]}  Qc7 {[%clk 0:00:12]} 40. b4 {[%clk 0:00:13]}  Rc1+ {[%clk 0:00:13]} 41. Kh2 {[%clk 0:00:13]}  Rxb1 {[%clk 0:00:12]} 42. Rxb1 {[%clk 0:00:13]}  Qc4 {[%clk 0:00:13]} 43. Qxc4 {[%clk 0:00:11]}  Bxc4 {[%clk 0:00:13]} 44. b5 {[%clk 0:00:09]}  Bd3 {[%clk 0:00:13]} 45. Rc1 {[%clk 0:00:08]}  Rb8 {[%clk 0:00:12]} 46. Rc7 {[%clk 0:00:07]}  Bd8 {[%clk 0:00:12]} 47. Ra7 {[%clk 0:00:07]}  Bb6 {[%clk 0:00:10]} 48. Bxb6 {[%clk 0:00:07]}  Rxb6 {[%clk 0:00:11]} 49. Nd4 {[%clk 0:00:07]}  Kg7 {[%clk 0:00:07]} 50. Rc7 {[%clk 0:00:06]}  g5 {[%clk 0:00:07]} 51. fxg5 {[%clk 0:00:05]}  Kg6 {[%clk 0:00:07]} 52. Rc5 {[%clk 0:00:05]}  Kxg5 {[%clk 0:00:07]} 53. a5 {[%clk 0:00:06]}  Rb8 {[%clk 0:00:07]} 54. b6 {[%clk 0:00:05]}  Kf4 {[%clk 0:00:08]} 55. Nc6 {[%clk 0:00:05]}  Rg8 {[%clk 0:00:05]} 56. Rc1 {[%clk 0:00:03]}  Be4 {[%clk 0:00:06]} 57. Rg1 {[%clk 0:00:03]}  d4 {[%clk 0:00:04]} 58. Nxd4 {[%clk 0:00:04]}  Kxe5 {[%clk 0:00:04]} 59. Nf3+ {[%clk 0:00:02]}  Kf4 {[%clk 0:00:04]} 60. Rf1 {[%clk 0:00:02]}  Ke3 {[%clk 0:00:04]} 61. Nxh4 {[%clk 0:00:02]}  f5 {[%clk 0:00:03]} 62. Re1+ {[%clk 0:00:03]}  Kf4 {[%clk 0:00:03]} 63. a6 {[%clk 0:00:03]}  e5 {[%clk 0:00:01]} 64. b7 {[%clk 0:00:03]} 1-0


[Site "https://www.chess.com"]

[Event "Titled Tuesday Blitz November 01 Early 2022"]
[White "Lohani, Sujana"]
[Black "Martinez Molina, Carlos Alberto"]
[WhiteFideId "12311987"]
[BlackFideId "5122708"]
[WhiteElo "1691"]
[BlackElo "2212"]
[Result "0-1"]
[Round "04"]
[TimeControl "180+1"]
[Date "2022.11.02"]
[WhiteClock "0:01:53"]
[BlackClock "0:00:47"]

1. d4 {[%clk 0:03:00]}  Nf6 {[%clk 0:01:53]} 2. Nf3 {[%clk 0:03:01]}  c5 {[%clk 0:01:53]} 3. d5 {[%clk 0:03:00]}  d6 {[%clk 0:01:52]} 4. h3 {[%clk 0:02:57]}  e6 {[%clk 0:01:51]} 5. c3 {[%clk 0:02:57]}  exd5 {[%clk 0:01:50]} 6. Bg5 {[%clk 0:02:55]}  Be6 {[%clk 0:01:49]} 7. e3 {[%clk 0:02:53]}  Nbd7 {[%clk 0:01:48]} 8. Bb5 {[%clk 0:02:39]}  Be7 {[%clk 0:01:47]} 9. O-O {[%clk 0:02:37]}  O-O {[%clk 0:01:45]} 10. Re1 {[%clk 0:02:37]}  a6 {[%clk 0:01:46]} 11. Ba4 {[%clk 0:02:37]}  b5 {[%clk 0:01:46]} 12. Bc2 {[%clk 0:02:36]}  h6 {[%clk 0:01:46]} 13. Bh4 {[%clk 0:02:34]}  Ne4 {[%clk 0:01:46]} 14. Bxe7 {[%clk 0:02:33]}  Qxe7 {[%clk 0:01:47]} 15. Nbd2 {[%clk 0:02:32]}  Ndf6 {[%clk 0:01:45]} 16. Nb3 {[%clk 0:02:27]}  Rab8 {[%clk 0:01:17]} 17. Na5 {[%clk 0:02:25]}  Qc7 {[%clk 0:01:15]} 18. b4 {[%clk 0:02:21]}  Nxc3 {[%clk 0:01:09]} 19. Qd3 {[%clk 0:02:15]}  cxb4 {[%clk 0:01:08]} 20. Nb3 {[%clk 0:02:11]}  Qc4 {[%clk 0:01:08]} 21. Qd2 {[%clk 0:02:07]}  Nfe4 {[%clk 0:01:03]} 22. Qc1 {[%clk 0:02:03]}  Ne2+ {[%clk 0:00:57]} 23. Rxe2 {[%clk 0:01:59]}  Qxe2 {[%clk 0:00:58]} 24. Nbd4 {[%clk 0:01:58]}  Qxf2+ {[%clk 0:00:56]} 25. Kh2 {[%clk 0:01:53]}  Bxh3 {[%clk 0:00:47]} 0-1


[Site "https://www.chess.com"]

[Event "Titled Tuesday Blitz November 01 Early 2022"]
[White "Madaminov, Mukhiddin"]
[Black "Nakamura, Hikaru"]
[WhiteFideId "14210703"]
[BlackFideId "2016192"]
[WhiteElo "2860"]
[BlackElo "3241"]
[Result "0-1"]
[Round "04"]
[TimeControl "180+1"]
[Date "2022.11.01"]
[WhiteClock "0:00:03"]
[BlackClock "0:00:25"]

1. d4 {[%clk 0:03:00]}  f5 {[%clk 0:02:58]} 2. Bg5 {[%clk 0:03:00]}  c6 {[%clk 0:02:57]} 3. e3 {[%clk 0:02:56]}  d6 {[%clk 0:02:55]} 4. Nd2 {[%clk 0:02:50]}  Nd7 {[%clk 0:02:52]} 5. Ne2 {[%clk 0:02:42]}  Ndf6 {[%clk 0:02:46]} 6. c4 {[%clk 0:02:38]}  e5 {[%clk 0:02:44]} 7. Nc3 {[%clk 0:02:35]}  h6 {[%clk 0:02:42]} 8. Bxf6 {[%clk 0:02:35]}  Nxf6 {[%clk 0:02:42]} 9. Be2 {[%clk 0:02:27]}  g6 {[%clk 0:02:42]} 10. O-O {[%clk 0:02:25]}  Bg7 {[%clk 0:02:42]} 11. dxe5 {[%clk 0:02:22]}  dxe5 {[%clk 0:02:42]} 12. c5 {[%clk 0:02:22]}  Qe7 {[%clk 0:02:36]} 13. b4 {[%clk 0:02:04]}  O-O {[%clk 0:02:32]} 14. Nc4 {[%clk 0:01:56]}  Rd8 {[%clk 0:02:33]} 15. Qc2 {[%clk 0:01:56]}  Ne8 {[%clk 0:02:33]} 16. Rad1 {[%clk 0:01:53]}  Be6 {[%clk 0:02:33]} 17. f3 {[%clk 0:01:24]}  h5 {[%clk 0:02:22]} 18. a3 {[%clk 0:01:19]}  h4 {[%clk 0:02:21]} 19. Na5 {[%clk 0:01:14]}  Bh6 {[%clk 0:02:00]} 20. e4 {[%clk 0:00:51]}  Be3+ {[%clk 0:01:51]} 21. Kh1 {[%clk 0:00:52]}  Qf7 {[%clk 0:01:34]} 22. Rxd8 {[%clk 0:00:33]}  Rxd8 {[%clk 0:01:35]} 23. Bd3 {[%clk 0:00:34]}  Ng7 {[%clk 0:01:30]} 24. Ne2 {[%clk 0:00:30]}  fxe4 {[%clk 0:01:24]} 25. Bxe4 {[%clk 0:00:25]}  Rd2 {[%clk 0:01:24]} 26. Qc3 {[%clk 0:00:25]}  Rxe2 {[%clk 0:01:14]} 27. Qd3 {[%clk 0:00:25]}  Rf2 {[%clk 0:01:15]} 28. Qd8+ {[%clk 0:00:09]}  Qe8 {[%clk 0:00:54]} 29. Qxe8+ {[%clk 0:00:06]}  Nxe8 {[%clk 0:00:54]} 30. Rxf2 {[%clk 0:00:07]}  Bxf2 {[%clk 0:00:54]} 31. Nxb7 {[%clk 0:00:08]}  Bd5 {[%clk 0:00:51]} 32. Nd8 {[%clk 0:00:03]}  Nf6 {[%clk 0:00:24]} 33. Nxc6 {[%clk 0:00:02]}  Nxe4 {[%clk 0:00:24]} 34. Ne7+ {[%clk 0:00:03]}  Kf7 {[%clk 0:00:25]} 35. Nxd5 {[%clk 0:00:04]}  Ng5 {[%clk 0:00:25]} 36. c6 {[%clk 0:00:04]}  Ke6 {[%clk 0:00:25]} 37. c7 {[%clk 0:00:04]}  Kd7 {[%clk 0:00:26]} 38. Ne7 {[%clk 0:00:02]}  Kxc7 {[%clk 0:00:26]} 39. Nxg6 {[%clk 0:00:03]}  Kd6 {[%clk 0:00:24]} 40. g3 {[%clk 0:00:03]}  h3 {[%clk 0:00:25]} 0-1


[Site "https://www.chess.com"]

[Event "Titled Tuesday Blitz November 01 Early 2022"]
[White "Maranhao,Jose Renato Ruiz"]
[Black "Ardila, Oscar Humberto"]
[WhiteFideId "2135175"]
[BlackFideId "4404742"]
[WhiteElo "1970"]
[BlackElo "1898"]
[Result "0-1"]
[Round "04"]
[TimeControl "180+1"]
[Date "2022.11.02"]
[WhiteClock "0:00:02"]
[BlackClock "0:01:08"]

1. g3 {[%clk 0:03:00]}  Nf6 {[%clk 0:02:59]} 2. Bg2 {[%clk 0:03:01]}  g6 {[%clk 0:02:59]} 3. b3 {[%clk 0:03:02]}  Bg7 {[%clk 0:03:00]} 4. Bb2 {[%clk 0:03:03]}  O-O {[%clk 0:03:00]} 5. d3 {[%clk 0:03:04]}  d6 {[%clk 0:03:01]} 6. Nd2 {[%clk 0:03:04]}  Nbd7 {[%clk 0:03:02]} 7. e4 {[%clk 0:03:05]}  e5 {[%clk 0:03:02]} 8. Ne2 {[%clk 0:03:05]}  c6 {[%clk 0:03:03]} 9. O-O {[%clk 0:03:06]}  Qc7 {[%clk 0:03:03]} 10. h3 {[%clk 0:03:04]}  Re8 {[%clk 0:03:03]} 11. Re1 {[%clk 0:03:05]}  Nf8 {[%clk 0:03:03]} 12. Nf1 {[%clk 0:03:05]}  Be6 {[%clk 0:03:00]} 13. c4 {[%clk 0:03:04]}  Rad8 {[%clk 0:03:00]} 14. Ne3 {[%clk 0:03:04]}  Bc8 {[%clk 0:02:59]} 15. a4 {[%clk 0:03:01]}  a5 {[%clk 0:02:59]} 16. Qd2 {[%clk 0:02:56]}  Ne6 {[%clk 0:02:59]} 17. f4 {[%clk 0:02:23]}  Nc5 {[%clk 0:02:56]} 18. Qc3 {[%clk 0:02:06]}  Qb6 {[%clk 0:02:55]} 19. Nc1 {[%clk 0:00:56]}  exf4 {[%clk 0:02:47]} 20. gxf4 {[%clk 0:00:57]}  Nh5 {[%clk 0:02:47]} 21. Qc2 {[%clk 0:00:49]}  Nxf4 {[%clk 0:02:35]} 22. Bf1 {[%clk 0:00:45]}  Bxh3 {[%clk 0:02:30]} 23. Bxg7 {[%clk 0:00:40]}  Kxg7 {[%clk 0:02:29]} 24. Ra2 {[%clk 0:00:30]}  Bxf1 {[%clk 0:02:28]} 25. Kxf1 {[%clk 0:00:28]}  Nce6 {[%clk 0:02:22]} 26. Qh2 {[%clk 0:00:21]}  h5 {[%clk 0:02:12]} 27. Rf2 {[%clk 0:00:21]}  Qd4 {[%clk 0:02:00]} 28. Qg3 {[%clk 0:00:16]}  Kh7 {[%clk 0:01:42]} 29. Rxf4 {[%clk 0:00:15]}  Nxf4 {[%clk 0:01:42]} 30. Qxf4 {[%clk 0:00:16]}  Qe5 {[%clk 0:01:31]} 31. Qxf7+ {[%clk 0:00:14]}  Qg7 {[%clk 0:01:31]} 32. Qxg7+ {[%clk 0:00:14]}  Kxg7 {[%clk 0:01:28]} 33. Ne2 {[%clk 0:00:14]}  Rf8+ {[%clk 0:01:28]} 34. Kg2 {[%clk 0:00:14]}  Kh6 {[%clk 0:01:26]} 35. Nd4 {[%clk 0:00:12]}  Rde8 {[%clk 0:01:24]} 36. Nf3 {[%clk 0:00:09]}  Rf4 {[%clk 0:01:21]} 37. Rf1 {[%clk 0:00:06]}  Ref8 {[%clk 0:01:19]} 38. Nc2 {[%clk 0:00:05]}  Rg4+ {[%clk 0:01:19]} 39. Kh3 {[%clk 0:00:04]}  g5 {[%clk 0:01:13]} 40. Ncd4 {[%clk 0:00:02]}  Rgf4 {[%clk 0:01:10]} 41. Kg2 {[%clk 0:00:02]}  g4 {[%clk 0:01:08]} 0-1


[Site "https://www.chess.com"]

[Event "Titled Tuesday Blitz November 01 Early 2022"]
[White "Matveeva, Olga"]
[Black "Vusatiuk, Vladimir"]
[WhiteFideId "24107018"]
[BlackFideId "14118610"]
[WhiteElo "2055"]
[BlackElo "2208"]
[Result "0-1"]
[Round "04"]
[TimeControl "180+1"]
[Date "2022.11.02"]
[WhiteClock "0:00:14"]
[BlackClock "0:00:24"]

1. d4 {[%clk 0:03:00]}  Nf6 {[%clk 0:02:59]} 2. c4 {[%clk 0:03:01]}  c6 {[%clk 0:03:00]} 3. Nf3 {[%clk 0:03:01]}  d5 {[%clk 0:03:00]} 4. e3 {[%clk 0:03:01]}  g6 {[%clk 0:03:00]} 5. Nc3 {[%clk 0:02:59]}  Bg7 {[%clk 0:03:00]} 6. Bd3 {[%clk 0:02:59]}  O-O {[%clk 0:03:00]} 7. O-O {[%clk 0:02:58]}  Bg4 {[%clk 0:02:57]} 8. h3 {[%clk 0:02:56]}  Bxf3 {[%clk 0:02:57]} 9. Qxf3 {[%clk 0:02:56]}  e6 {[%clk 0:02:56]} 10. b3 {[%clk 0:02:55]}  Nbd7 {[%clk 0:02:56]} 11. cxd5 {[%clk 0:02:42]}  exd5 {[%clk 0:02:51]} 12. Bb2 {[%clk 0:02:36]}  Re8 {[%clk 0:02:50]} 13. Rac1 {[%clk 0:02:34]}  Nf8 {[%clk 0:02:45]} 14. b4 {[%clk 0:02:31]}  Qd6 {[%clk 0:02:29]} 15. b5 {[%clk 0:02:24]}  Ne6 {[%clk 0:02:29]} 16. bxc6 {[%clk 0:02:22]}  bxc6 {[%clk 0:02:30]} 17. Rc2 {[%clk 0:02:12]}  Ng5 {[%clk 0:02:29]} 18. Qe2 {[%clk 0:01:55]}  Nh5 {[%clk 0:02:23]} 19. Qg4 {[%clk 0:01:38]}  h6 {[%clk 0:02:22]} 20. Rfc1 {[%clk 0:01:25]}  f5 {[%clk 0:02:21]} 21. Bxf5 {[%clk 0:01:20]}  Nf6 {[%clk 0:02:22]} 22. Qf4 {[%clk 0:01:00]}  Qxf4 {[%clk 0:02:08]} 23. exf4 {[%clk 0:01:01]}  gxf5 {[%clk 0:02:07]} 24. fxg5 {[%clk 0:01:01]}  hxg5 {[%clk 0:02:08]} 25. Na4 {[%clk 0:01:01]}  Rab8 {[%clk 0:01:54]} 26. Ba3 {[%clk 0:00:55]}  Ne4 {[%clk 0:01:50]} 27. Rxc6 {[%clk 0:00:49]}  Bxd4 {[%clk 0:01:47]} 28. R1c2 {[%clk 0:00:41]}  Nxf2 {[%clk 0:01:43]} 29. Kh2 {[%clk 0:00:33]}  Be5+ {[%clk 0:01:36]} 30. g3 {[%clk 0:00:31]}  Ne4 {[%clk 0:01:35]} 31. Nc5 {[%clk 0:00:26]}  Nxg3 {[%clk 0:01:10]} 32. Nd7 {[%clk 0:00:24]}  Nf1+ {[%clk 0:01:09]} 33. Kg1 {[%clk 0:00:21]}  Ne3 {[%clk 0:01:07]} 34. Re2 {[%clk 0:00:17]}  Rb1+ {[%clk 0:01:05]} 35. Kf2 {[%clk 0:00:16]}  Bd4 {[%clk 0:00:42]} 36. Nf6+ {[%clk 0:00:14]}  Bxf6 {[%clk 0:00:25]} 37. Rxf6 {[%clk 0:00:15]}  f4 {[%clk 0:00:24]} 38. Rg6+ {[%clk 0:00:14]}  Kf7 {[%clk 0:00:24]} 39. Rxg5 {[%clk 0:00:14]}  Rf1# {[%clk 0:00:24]} 0-1


[Site "https://www.chess.com"]

[Event "Titled Tuesday Blitz November 01 Early 2022"]
[White "Mesa Cruz, Juan Carlos"]
[Black "Medeiros Jr, Francisco De Assis"]
[WhiteFideId "6423400"]
[BlackFideId "2114267"]
[WhiteElo "2059"]
[BlackElo "2040"]
[Result "0-1"]
[Round "04"]
[TimeControl "180+1"]
[Date "2022.11.02"]
[WhiteClock "0:00:12"]
[BlackClock "0:00:51"]

1. e4 {[%clk 0:03:00]}  e5 {[%clk 0:02:40]} 2. Nf3 {[%clk 0:02:59]}  Nc6 {[%clk 0:02:39]} 3. Bc4 {[%clk 0:03:00]}  Nf6 {[%clk 0:02:37]} 4. d3 {[%clk 0:02:59]}  Bc5 {[%clk 0:02:34]} 5. c3 {[%clk 0:02:59]}  O-O {[%clk 0:02:29]} 6. O-O {[%clk 0:02:56]}  h6 {[%clk 0:02:24]} 7. d4 {[%clk 0:02:49]}  Bb6 {[%clk 0:02:21]} 8. dxe5 {[%clk 0:02:43]}  Ng4 {[%clk 0:02:21]} 9. Bf4 {[%clk 0:02:43]}  Qe8 {[%clk 0:02:16]} 10. Qd5 {[%clk 0:02:41]}  Ne7 {[%clk 0:02:12]} 11. Qd2 {[%clk 0:02:19]}  Ng6 {[%clk 0:02:13]} 12. a4 {[%clk 0:02:01]}  N4xe5 {[%clk 0:02:04]} 13. Nxe5 {[%clk 0:01:55]}  Nxe5 {[%clk 0:02:05]} 14. Be2 {[%clk 0:01:41]}  a6 {[%clk 0:01:53]} 15. Na3 {[%clk 0:01:35]}  d6 {[%clk 0:01:51]} 16. Bxe5 {[%clk 0:01:14]}  dxe5 {[%clk 0:01:51]} 17. Nc4 {[%clk 0:01:12]}  Ba7 {[%clk 0:01:48]} 18. Qd5 {[%clk 0:01:11]}  Qe7 {[%clk 0:01:40]} 19. Kh1 {[%clk 0:00:23]}  Kh8 {[%clk 0:01:39]} 20. Qxe5 {[%clk 0:00:22]}  Qxe5 {[%clk 0:01:28]} 21. Nxe5 {[%clk 0:00:22]}  Re8 {[%clk 0:01:28]} 22. Nxf7+ {[%clk 0:00:22]}  Kg8 {[%clk 0:01:24]} 23. Bc4 {[%clk 0:00:21]}  Be6 {[%clk 0:01:19]} 24. Ne5 {[%clk 0:00:11]}  Bxc4 {[%clk 0:01:14]} 25. Nxc4 {[%clk 0:00:12]}  Rxe4 {[%clk 0:01:15]} 26. b3 {[%clk 0:00:13]}  Re2 {[%clk 0:01:10]} 27. f3 {[%clk 0:00:11]}  Rae8 {[%clk 0:01:08]} 28. Rad1 {[%clk 0:00:12]}  Rc2 {[%clk 0:01:03]} 29. Rc1 {[%clk 0:00:12]}  Ree2 {[%clk 0:01:00]} 30. Rxc2 {[%clk 0:00:12]}  Rxc2 {[%clk 0:01:01]} 31. Rd1 {[%clk 0:00:11]}  Rxc3 {[%clk 0:00:58]} 32. Rd8+ {[%clk 0:00:10]}  Kh7 {[%clk 0:00:57]} 33. h4 {[%clk 0:00:11]}  Rxb3 {[%clk 0:00:54]} 34. h5 {[%clk 0:00:12]}  Rb4 {[%clk 0:00:51]} 0-1


[Site "https://www.chess.com"]

[Event "Titled Tuesday Blitz November 01 Early 2022"]
[White "Migot, Tangi"]
[Black "Begunov, Konstantin"]
[WhiteFideId "662445"]
[BlackFideId "4118510"]
[WhiteElo "2589"]
[BlackElo "2225"]
[Result "1-0"]
[Round "04"]
[TimeControl "180+1"]
[Date "2022.11.02"]
[WhiteClock "0:00:25"]
[BlackClock "0:00:02"]

1. f4 {[%clk 0:03:00]}  d5 {[%clk 0:02:59]} 2. Nf3 {[%clk 0:03:00]}  g6 {[%clk 0:02:59]} 3. e3 {[%clk 0:02:59]}  Bg7 {[%clk 0:02:59]} 4. Be2 {[%clk 0:02:59]}  Nf6 {[%clk 0:02:58]} 5. O-O {[%clk 0:02:59]}  c5 {[%clk 0:02:56]} 6. c3 {[%clk 0:03:00]}  O-O {[%clk 0:02:56]} 7. d4 {[%clk 0:03:00]}  cxd4 {[%clk 0:02:52]} 8. exd4 {[%clk 0:03:00]}  Ne4 {[%clk 0:02:50]} 9. Be3 {[%clk 0:02:57]}  Nd7 {[%clk 0:02:48]} 10. Nbd2 {[%clk 0:02:57]}  Ndf6 {[%clk 0:02:48]} 11. Nxe4 {[%clk 0:02:45]}  Nxe4 {[%clk 0:02:47]} 12. Nd2 {[%clk 0:02:45]}  Bf5 {[%clk 0:02:42]} 13. g4 {[%clk 0:02:41]}  Nxd2 {[%clk 0:02:38]} 14. Qxd2 {[%clk 0:02:40]}  Be4 {[%clk 0:02:37]} 15. f5 {[%clk 0:02:37]}  a6 {[%clk 0:02:20]} 16. Bf3 {[%clk 0:02:33]}  Bxf3 {[%clk 0:02:10]} 17. Rxf3 {[%clk 0:02:34]}  b5 {[%clk 0:02:04]} 18. Bh6 {[%clk 0:02:34]}  Qd6 {[%clk 0:01:40]} 19. Raf1 {[%clk 0:02:06]}  gxf5 {[%clk 0:01:01]} 20. Bxg7 {[%clk 0:01:55]}  Kxg7 {[%clk 0:01:02]} 21. Rxf5 {[%clk 0:01:53]}  f6 {[%clk 0:00:42]} 22. Rh5 {[%clk 0:01:39]}  Kh8 {[%clk 0:00:37]} 23. Qg2 {[%clk 0:01:31]}  Rg8 {[%clk 0:00:31]} 24. Rxd5 {[%clk 0:01:25]}  Qe6 {[%clk 0:00:22]} 25. h3 {[%clk 0:01:17]}  Rab8 {[%clk 0:00:20]} 26. a3 {[%clk 0:01:15]}  a5 {[%clk 0:00:20]} 27. Qf3 {[%clk 0:01:05]}  b4 {[%clk 0:00:19]} 28. Rxa5 {[%clk 0:01:03]}  bxc3 {[%clk 0:00:18]} 29. bxc3 {[%clk 0:00:57]}  Rb2 {[%clk 0:00:18]} 30. Rf5 {[%clk 0:00:56]}  Qb3 {[%clk 0:00:17]} 31. d5 {[%clk 0:00:45]}  Qxa3 {[%clk 0:00:15]} 32. Rf2 {[%clk 0:00:43]}  Qa1+ {[%clk 0:00:13]} 33. Kg2 {[%clk 0:00:42]}  Rb1 {[%clk 0:00:13]} 34. d6 {[%clk 0:00:36]}  exd6 {[%clk 0:00:10]} 35. Rxf6 {[%clk 0:00:34]}  Rg1+ {[%clk 0:00:09]} 36. Kh2 {[%clk 0:00:34]}  Rc1 {[%clk 0:00:07]} 37. Rf8 {[%clk 0:00:31]}  Qxc3 {[%clk 0:00:01]} 38. Rxg8+ {[%clk 0:00:25]}  Kxg8 {[%clk 0:00:02]} 39. Qf8# {[%clk 0:00:25]} 1-0


[Site "https://www.chess.com"]